fUST/lending_fUST_20241002
["ID","MTS","AMOUNT","RATE_DAILY","PERIOD"]
[339673905,1727830243414,-3046.16511241,0.0001586,2]
[339673907,1727830243426,-1191.78,0.0001586,2]
[339673909,1727830243438,-737.12,0.0001586,2]
[339673970,1727830246460,-2463.79999999,0.0001586,2]
[339673971,1727830246518,-17803.53898708,0.0001586,2]
[339673972,1727830246528,-1188.64500375,0.00015869,2]
[339673973,1727830246539,-18774.25782423,0.0001587,2]
[339673974,1727830246551,-150.407,0.0001587,2]
[339673975,1727830246561,-3200.0,0.0001587,2]
[339673976,1727830246572,-500.0,0.0001587,2]
[339673977,1727830246773,-500.0,0.0001587,2]
[339673978,1727830246787,-448.13857745,0.0001587,2]
[339673979,1727830246797,-500.0,0.0001587,2]
[339673980,1727830246806,-500.0,0.0001587,2]
[339673981,1727830246815,-500.0,0.0001587,2]
[339673982,1727830246825,-580.06874615,0.0001587,2]
[339673983,1727830246835,-154.466697,0.00015871,2]
[339673984,1727830246844,-194.356899,0.00015871,2]
[339673985,1727830246854,-222.133251,0.00015871,2]
[339673986,1727830246864,-388.65482,0.00015871,2]
[339673987,1727830246875,-569.646798,0.00015871,2]
[339673988,1727830246886,-233.228279,0.00015871,2]
[339673989,1727830246895,-1000.0,0.00015872,2]
[339673990,1727830246906,-444.266501,0.00015885,2]
[339673991,1727830246917,-1600.867601,0.00015885,2]
[339673992,1727830246927,-832.825191,0.00015885,2]
[339673993,1727830246937,-602.714631,0.00015885,2]
[339673994,1727830246949,-589.956573,0.00015885,2]
[339673995,1727830246959,-644.651755,0.00015885,2]
[339673996,1727830246969,-520.492336,0.00015885,2]
[339673997,1727830246981,-617.86679,0.00015894,2]
[339673998,1727830246992,-600.24632575,0.000159,2]
[339673999,1727830247002,-1000.0,0.0001598,2]
[339674000,1727830247012,-312.14452204,0.00016,2]
[339674001,1727830247021,-185.0,0.00016,2]
[339674002,1727830247031,-2850.00000001,0.00016,2]
[339674003,1727830247040,-3000.0,0.00016,2]
[339674004,1727830247050,-3000.0,0.0001601,2]
[339674005,1727830247061,-3000.0,0.0001602,2]
[339674006,1727830247072,-3000.0,0.0001603,2]
[339674007,1727830247084,-3000.0,0.0001604,2]
[339674008,1727830247096,-3000.0,0.0001605,2]
[339674009,1727830247106,-3000.0,0.0001606,2]
[339674010,1727830247117,-11527.35001892,0.00016067,2]
[339674015,1727831097508,5056.39264,0.00021,60]
[339674016,1727831098851,400.0,0.000103,2]
[339674093,1727831440510,-154.466697,0.00015115,2]
[339674095,1727831440520,-154.466697,0.00015367,2]
[339674097,1727831440530,-342.816606,0.000155,30]
[339674100,1727831440547,-2657.183394,0.000155,30]
[339674102,1727831440557,-3000.0,0.0001551,30]
[339674104,1727831440566,-3000.0,0.0001552,30]
[339674106,1727831440575,-192.30632926,0.00015529,2]
[339674109,1727831440592,-107.69367074,0.00015529,2]
[339674110,1727831440601,-3000.0,0.0001553,30]
[339674112,1727831440610,-3000.0,0.0001554,30]
[339674114,1727831440620,-3000.0,0.0001555,30]
[339674116,1727831440629,-3000.0,0.0001556,30]
[339674118,1727831440639,-3000.0,0.0001557,30]
[339674120,1727831440648,-179.11,0.0001558,2]
[339674122,1727831440658,-3000.0,0.0001558,30]
[339674124,1727831440668,-3000.0,0.0001559,30]
[339674126,1727831440678,-247.10003484,0.0001559,2]
[339674128,1727831440688,-3000.0,0.000156,30]
[339674130,1727831440697,-3000.0,0.0001561,30]
[339674132,1727831440707,-154.466697,0.00015619,2]
[339674134,1727831440716,-3000.0,0.0001562,30]
[339674136,1727831440726,-3000.0,0.0001563,30]
[339674138,1727831440737,-3200.0,0.0001563,2]
[339674140,1727831440746,-3000.0,0.0001564,30]
[339674142,1727831440756,-3863.912166,0.0001565,30]
[339674145,1727831440765,-5545.15658506,0.00015757,2]
[339674147,1727831440775,-350.0,0.000158,2]
[339674149,1727831440784,-345.45186284,0.000158,2]
[339674151,1727831440794,-154.466697,0.00015871,2]
[339674153,1727831440804,-2417.8,0.00016,2]
[339674155,1727831440813,-350.0,0.00016,2]
[339674157,1727831440823,-1159.61859776,0.00016,2]
[339674201,1727831726615,-228.24824247,0.00015015,2]
[339674202,1727831726643,-287.624619,0.00015115,2]
[339674203,1727831726668,-258.752059,0.00015115,2]
[339674204,1727831726698,-154.466697,0.00015115,2]
[339674205,1727831726726,-154.466697,0.00015115,2]
[339674206,1727831726751,-150.0,0.00015291,2]
[339674207,1727831726779,-525.0,0.00015291,2]
[339674208,1727831726805,-287.624619,0.00015304,2]
[339674209,1727831726832,-258.752059,0.00015304,2]
[339674210,1727831726858,-287.624619,0.00015493,2]
[339674211,1727831726890,-258.752059,0.00015493,2]
[339674212,1727831726917,-3000.0,0.000155,30]
[339674213,1727831726946,-300.397319,0.000155,5]
[339674214,1727831726971,-1556.23693233,0.000155,2]
[339674215,1727831726998,-300.0,0.00015509,2]
[339674216,1727831727026,-3000.0,0.0001551,30]
[339674217,1727831727053,-3000.0,0.0001552,30]
[339674218,1727831727084,-3000.0,0.0001553,30]
[339674219,1727831727109,-3000.0,0.0001554,30]
[339674220,1727831727144,-3000.0,0.0001555,30]
[339674221,1727831727168,-3000.0,0.0001556,30]
[339674222,1727831727194,-3000.0,0.0001557,30]
[339674223,1727831727218,-3000.0,0.0001558,30]
[339674224,1727831727245,-3000.0,0.0001559,30]
[339674225,1727831727269,-3000.0,0.000156,30]
[339674226,1727831727295,-3000.0,0.0001561,30]
[339674227,1727831727320,-3000.0,0.0001562,30]
[339674228,1727831727347,-3000.0,0.0001563,30]
[339674229,1727831727372,-3000.0,0.0001564,30]
[339674230,1727831727402,-5219.28158505,0.00015644,2]
[339674231,1727831727426,-3863.912166,0.0001565,30]
[339674232,1727831727453,-287.624619,0.00015682,2]
[339674233,1727831727479,-258.752059,0.00015682,2]
[339674234,1727831727503,-160.0,0.00015859,3]
[339674235,1727831727527,-160.0,0.00015859,5]
[339674236,1727831727554,-287.624619,0.00015871,2]
[339674237,1727831727578,-258.752059,0.00015871,2]
[339674238,1727831727603,-1000.0,0.0001598,2]
[339674239,1727831727634,-350.0,0.00016,3]
[339674240,1727831727661,-3227.216,0.00016,2]
[339674241,1727831727690,-3000.0,0.00016,2]
[339674242,1727831727718,-3000.0,0.0001601,2]
[339674243,1727831727744,-3000.0,0.0001602,2]
[339674244,1727831727769,-12532.8505813,0.0001603,2]
[339674245,1727831727792,-3000.0,0.0001603,2]
[339674246,1727831727816,-3000.0,0.0001604,2]
[339674247,1727831727839,-892.52650872,0.0001605,2]
[339674248,1727831727866,-3000.0,0.0001605,2]
[339674249,1727831727893,-300.0,0.0001606,2]
[339674250,1727831727917,-3000.0,0.0001606,2]
[339674251,1727831727945,-62595.89975491,0.0001606,2]
[339674252,1727831727972,-82174.8446425,0.0001606,2]
[339674253,1727831727998,-55422.76948372,0.0001606,2]
[339674270,1727832632005,-285.596,0.00015297,2]
[339674272,1727832632016,-971.49368,0.00015644,2]
[339674274,1727832632027,-5266.94158806,0.00015723,2]
[339674275,1727832632036,-1361.70731578,0.0001596,2]
[339674278,1727832632047,-4085.93054835,0.00016,2]
[339674281,1727832632058,-3000.0,0.00016,2]
[339674285,1727832632069,-3000.0,0.0001601,2]
[339674287,1727832632079,-3000.0,0.0001602,2]
[339674289,1727832632091,-279.13163439,0.0001603,2]
[339674308,1727832639992,-526.59,0.00015297,2]
[339674309,1727832640002,-491.13000827,0.0001603,2]
[339674310,1727832640016,-2229.73835734,0.0001603,2]
[339674311,1727832640026,-3000.0,0.0001604,2]
[339674312,1727832640038,-3000.0,0.0001605,2]
[339674313,1727832640047,-3000.0,0.0001606,2]
[339674314,1727832640056,-434.65200456,0.0001606,2]
[339674315,1727832640066,-151.0,0.00016061,2]
[339674316,1727832640075,-151.0,0.00016061,2]
[339674317,1727832640084,-990.53750313,0.00016066,2]
[339674318,1727832640093,-3000.0,0.0001607,2]
[339674319,1727832640103,-444.266501,0.00016077,2]
[339674320,1727832640116,-1600.867601,0.00016077,2]
[339674321,1727832640126,-163.709046,0.00016077,2]
[339674322,1727832640136,-832.825191,0.00016077,2]
[339674323,1727832640146,-602.714631,0.00016077,2]
[339674324,1727832640155,-589.956573,0.00016077,2]
[339674325,1727832640166,-644.651755,0.00016077,2]
[339674326,1727832640175,-520.492336,0.00016077,2]
[339674327,1727832640185,-166.599938,0.00016077,2]
[339674328,1727832640194,-3000.0,0.0001608,2]
[339674329,1727832640204,-179.11,0.0001609,2]
[339674330,1727832640213,-3000.0,0.0001609,2]
[339674331,1727832640222,-3000.0,0.000161,2]
[339674332,1727832640232,-3000.0,0.0001611,2]
[339674333,1727832640241,-3000.0,0.0001612,2]
[339674334,1727832640251,-151.0,0.0001613,2]
[339674335,1727832640260,-3000.0,0.0001613,2]
[339674336,1727832640270,-3000.0,0.0001614,2]
[339674337,1727832640280,-37169.74790678,0.00016149,2]
[339674346,1727832643020,-1220.329,0.00015297,2]
[339674347,1727832643030,-4748.24003255,0.00016149,2]
[339674351,1727832663118,161.44,0.0001617,120]
[339674352,1727833493035,1000.0,0.00021,60]
[339674365,1727833832117,-511.49302202,0.00014886,2]
[339674366,1727833832127,-692.875515,0.00014986,2]
[339674368,1727833832136,-208.056346,0.00015115,2]
[339674370,1727833832146,-181.677327,0.00015115,2]
[339674372,1727833832155,-208.056346,0.00015304,2]
[339674374,1727833832165,-181.677327,0.00015367,2]
[339674376,1727833832174,-208.056346,0.00015493,2]
[339674378,1727833832183,-181.677327,0.00015619,2]
[339674380,1727833832193,-500.0,0.00015636,2]
[339674381,1727833832202,-208.056346,0.00015682,2]
[339674382,1727833832211,-181.677327,0.00015871,2]
[339674383,1727833832221,-208.056346,0.00015871,2]
[339674384,1727833832231,-160.85151437,0.000159,5]
[339674385,1727833832241,-1196.54294808,0.0001598,2]
[339674386,1727833832251,-300.0,0.00015999,2]
[339674387,1727833832260,-1522.7747969,0.00016,2]
[339674388,1727833832269,-3000.0,0.00016,2]
[339674389,1727833832279,-3000.0,0.0001601,2]
[339674390,1727833832289,-3000.0,0.0001602,2]
[339674391,1727833832299,-3000.0,0.0001603,2]
[339674392,1727833832309,-3000.0,0.0001604,2]
[339674393,1727833832319,-3000.0,0.0001605,2]
[339674394,1727833832328,-2876.67279773,0.0001606,2]
[339674395,1727833832443,-123.32720227,0.0001606,2]
[339674396,1727833832453,-183.39279591,0.0001607,2]
[339674397,1727833832462,-3000.0,0.0001607,2]
[339674398,1727833832472,-289.76800304,0.0001607,2]
[339674399,1727833832482,-332.40810822,0.0001608,2]
[339674400,1727833832494,-2667.59189178,0.0001608,2]
[339674401,1727833832504,-3000.0,0.0001609,2]
[339674402,1727833832514,-3000.0,0.000161,2]
[339674403,1727833832524,-3000.0,0.0001611,2]
[339674404,1727833832533,-3000.0,0.0001612,2]
[339674405,1727833832544,-3000.0,0.0001613,2]
[339674406,1727833832554,-3000.0,0.0001614,2]
[339674407,1727833832564,-826.6947213,0.00016148,2]
[339674408,1727833832574,-3000.0,0.0001615,2]
[339674409,1727833832584,-500.0,0.00016154,2]
[339674410,1727833832812,-3000.0,0.0001616,2]
[339674411,1727833832822,-803.90313829,0.00016164,2]
[339674412,1727833832831,-3000.0,0.0001617,2]
[339674413,1727833832842,-3000.0,0.0001618,2]
[339674414,1727833832852,-3000.0,0.0001619,2]
[339674415,1727833832861,-3000.0,0.000162,2]
[339674416,1727833832871,-357.54281364,0.000162,2]
[339674417,1727833832881,-153.0,0.00016206,2]
[339674418,1727833832891,-3000.0,0.0001621,2]
[339674419,1727833832901,-3000.0,0.0001622,2]
[339674420,1727833832911,-500.0,0.00016222,2]
[339674421,1727833832920,-500.0,0.00016222,2]
[339674422,1727833832930,-345.33663979,0.00016222,2]
[339674423,1727833832939,-312.47597173,0.00016222,2]
[339674424,1727833832949,-500.0,0.00016222,2]
[339674425,1727833832959,-500.0,0.00016222,2]
[339674426,1727833832969,-500.0,0.00016222,2]
[339674427,1727833832979,-8098.30654899,0.00016223,2]
[339674434,1727833843153,-688.91226775,0.00016222,2]
[339674435,1727833843162,-500.0,0.00016222,2]
[339674436,1727833843172,-500.0,0.00016222,2]
[339674437,1727833843181,-500.0,0.00016222,2]
[339674438,1727833843190,-384.15172432,0.00016222,2]
[339674439,1727833843200,-151.0,0.00016223,2]
[339674440,1727833843210,-151.0,0.00016223,2]
[339674441,1727833843220,-2657.17569978,0.00016223,2]
[339674466,1727835032269,-605.2666022,0.00014612,2]
[339674469,1727835032278,-582.38099564,0.00014885,2]
[339674472,1727835032287,-1000.0,0.00014885,2]
[339674475,1727835032297,-300.0,0.00014885,2]
[339674478,1727835032307,-300.0,0.00014885,2]
[339674481,1727835032316,-18643.89376492,0.00014886,2]
[339674484,1727835032327,-1000.0,0.00014986,2]
[339674487,1727835032337,-658.231739,0.00014986,2]
[339674490,1727835032347,-3000.0,0.00016,2]
[339674493,1727835032356,-2000.0,0.00016,2]
[339674496,1727835032366,-3000.0,0.0001601,2]
[339674499,1727835032376,-3000.0,0.0001602,2]
[339674502,1727835032386,-3000.0,0.0001603,2]
[339674505,1727835032395,-3000.0,0.0001604,2]
[339674508,1727835032405,-3000.0,0.0001605,2]
[339674510,1727835032419,-3000.0,0.0001606,2]
[339674512,1727835032429,-3000.0,0.0001607,2]
[339674514,1727835032438,-3000.0,0.0001608,2]
[339674516,1727835032447,-3000.0,0.0001609,2]
[339674518,1727835032457,-3000.0,0.000161,2]
[339674520,1727835032466,-153.0,0.000161,2]
[339674522,1727835032476,-153.0,0.000161,2]
[339674524,1727835032487,-153.0,0.000161,2]
[339674526,1727835032498,-153.0,0.000161,2]
[339674528,1727835032508,-153.0,0.000161,2]
[339674530,1727835032518,-3000.0,0.0001611,2]
[339674532,1727835032527,-3000.0,0.0001612,2]
[339674534,1727835032536,-3000.0,0.0001613,2]
[339674536,1727835032545,-3000.0,0.0001614,2]
[339674537,1727835032555,-3000.0,0.0001615,2]
[339674538,1727835032564,-500.0,0.00016154,2]
[339674539,1727835032574,-3000.0,0.0001616,2]
[339674540,1727835032583,-3000.0,0.0001617,2]
[339674541,1727835032592,-723.51282447,0.00016173,2]
[339674542,1727835032601,-307.2835926,0.00016177,2]
[339674543,1727835032611,-3000.0,0.0001618,2]
[339674544,1727835032620,-3000.0,0.0001619,2]
[339674545,1727835032631,-153.0,0.000162,2]
[339674546,1727835032640,-153.0,0.000162,2]
[339674547,1727835032650,-153.0,0.000162,2]
[339674548,1727835032659,-153.0,0.000162,2]
[339674550,1727835032669,-153.0,0.000162,2]
[339674552,1727835032678,-153.0,0.000162,2]
[339674554,1727835032688,-3000.0,0.000162,2]
[339674556,1727835032697,-153.0,0.000162,2]
[339674558,1727835032710,-2827.29529992,0.00016202,2]
[339674560,1727835032719,-8698.82897236,0.00016203,2]
[339674562,1727835032731,-1903.95086076,0.00016203,2]
[339674598,1727835040299,-193.1786687,0.0001601,2]
[339674601,1727835040310,-15452.27474536,0.00016203,2]
[339674603,1727835040321,-8481.88589976,0.00016203,2]
[339674605,1727835040331,-3000.0,0.0001621,2]
[339674607,1727835040343,-151.0,0.00016212,2]
[339674609,1727835040355,-151.0,0.00016212,2]
[339674612,1727835040365,-151.0,0.00016212,2]
[339674614,1727835040375,-151.0,0.00016212,2]
[339674616,1727835040386,-178.005854,0.00016212,2]
[339674618,1727835040396,-178.005854,0.00016212,2]
[339674620,1727835040407,-151.0,0.00016212,2]
[339674621,1727835040419,-153.234512,0.00016212,2]
[339674622,1727835040429,-151.0,0.00016212,2]
[339674623,1727835040439,-151.0,0.00016213,2]
[339674624,1727835040449,-151.0,0.00016213,2]
[339674625,1727835040460,-151.0,0.00016213,2]
[339674626,1727835040470,-151.0,0.00016213,2]
[339674627,1727835040480,-151.0,0.00016213,2]
[339674628,1727835040498,-284.674728,0.00016213,2]
[339674629,1727835040512,-190.944162,0.00016213,2]
[339674630,1727835040523,-286.768751,0.00016213,2]
[339674631,1727835040532,-286.768751,0.00016213,2]
[339674632,1727835040543,-151.0,0.00016213,2]
[339674633,1727835040553,-286.768751,0.00016213,2]
[339674634,1727835040563,-300.676801,0.00016213,2]
[339674635,1727835040572,-286.768751,0.00016213,2]
[339674636,1727835040582,-286.768751,0.00016213,2]
[339674637,1727835040592,-286.768751,0.00016213,2]
[339674638,1727835040601,-151.0,0.00016213,2]
[339674639,1727835040611,-151.251661,0.00016213,2]
[339674640,1727835040621,-151.0,0.00016213,2]
[339674641,1727835040631,-151.0,0.00016213,2]
[339674642,1727835040641,-201.22887,0.00016213,2]
[339674643,1727835040651,-152.196054,0.00016213,2]
[339674644,1727835040661,-151.0,0.00016213,2]
[339674645,1727835040671,-151.0,0.00016213,2]
[339674646,1727835040682,-151.0,0.00016213,2]
[339674647,1727835040691,-151.0,0.00016213,2]
[339674648,1727835040702,-152.413561,0.00016213,2]
[339674649,1727835040712,-151.0,0.00016213,2]
[339674650,1727835040723,-151.0,0.00016213,2]
[339674651,1727835040733,-151.0,0.00016213,2]
[339674652,1727835040743,-151.0,0.00016213,2]
[339674653,1727835040755,-184.551013,0.00016213,2]
[339674654,1727835040765,-151.0,0.00016213,2]
[339674655,1727835040775,-151.0,0.00016213,2]
[339674656,1727835040789,-162.073051,0.00016213,2]
[339674657,1727835040799,-151.0,0.00016213,2]
[339674658,1727835040811,-151.0,0.00016213,2]
[339674659,1727835040823,-151.0,0.00016213,2]
[339674660,1727835040834,-151.0,0.00016213,2]
[339674661,1727835040844,-151.0,0.00016213,2]
[339674662,1727835040855,-151.0,0.00016213,2]
[339674663,1727835040867,-151.0,0.00016213,2]
[339674664,1727835040877,-152.155159,0.00016213,2]
[339674665,1727835040887,-151.0,0.00016213,2]
[339674666,1727835040899,-151.0,0.00016213,2]
[339674667,1727835040910,-156.474634,0.00016213,2]
[339674668,1727835040921,-151.0,0.00016213,2]
[339674669,1727835040931,-151.0,0.00016213,2]
[339674670,1727835040942,-151.0,0.00016213,2]
[339674671,1727835040952,-151.0,0.00016213,2]
[339674672,1727835040962,-298.790221,0.00016213,2]
[339674673,1727835040972,-2827.29529992,0.00016213,2]
[339674676,1727835040983,-3000.0,0.0001622,2]
[339674677,1727835040994,-574.09355646,0.00016222,2]
[339674678,1727835041006,-3206.069,0.00016223,2]
[339674679,1727835041018,-243.006983,0.00016223,2]
[339674680,1727835041028,-243.006983,0.00016223,2]
[339674681,1727835041039,-264.780344,0.00016223,2]
[339674682,1727835041048,-151.0,0.00016223,2]
[339674683,1727835041230,-152.357079,0.00016223,2]
[339674684,1727835041242,-151.0,0.00016223,2]
[339674685,1727835041251,-151.0,0.00016223,2]
[339674686,1727835041264,-151.0,0.00016223,2]
[339674687,1727835041274,-151.0,0.00016223,2]
[339674688,1727835041284,-178.005854,0.00016223,2]
[339674689,1727835041294,-178.005854,0.00016223,2]
[339674690,1727835041304,-243.006983,0.00016224,2]
[339674691,1727835041315,-243.006983,0.00016224,2]
[339674692,1727835041326,-3000.0,0.0001623,2]
[339674693,1727835041337,-500.0,0.00016233,2]
[339674694,1727835041348,-500.0,0.00016233,2]
[339674695,1727835041357,-484.51343704,0.00016233,2]
[339674716,1727835043386,-151.0,0.00016203,2]
[339674717,1727835043396,-153.489417,0.00016213,2]
[339674718,1727835043407,-15.48656296,0.00016233,2]
[339674719,1727835043421,-628.70098266,0.00016233,2]
[339674720,1727835043432,-500.0,0.00016233,2]
[339674721,1727835043442,-500.0,0.00016233,2]
[339674722,1727835043452,-500.0,0.00016233,2]
[339674723,1727835043463,-500.0,0.00016233,2]
[339674724,1727835043472,-500.0,0.00016233,2]
[339674725,1727835043482,-441.17045047,0.00016233,2]
[339674779,1727835046473,-222.560415,0.00016203,2]
[339674781,1727835046484,-222.560415,0.00016213,2]
[339674783,1727835046494,-203.87917,0.00016222,2]
[339674815,1727835168346,186.13705934,0.00021,60]
[339674821,1727835421681,350.0,0.000103,2]
[339674834,1727835702590,5749.68617511,0.000103,2]
[339674835,1727835732454,11328.10382489,0.00010101,2]
[339674836,1727835759028,187.9680466,0.0002101,120]
[339674837,1727835775202,1169.1340185,0.0002101,120]
[339674840,1727835970494,3000.0,0.00015,30]
[339674881,1727836232531,-625.320152,0.00014986,2]
[339674882,1727836232541,-3206.069,0.00015778,2]
[339674883,1727836232550,-440.25872808,0.0001599,2]
[339674890,1727836238371,-606.71635149,0.0001599,2]
[339674891,1727836238380,-300.0,0.00015999,2]
[339674893,1727836238391,-300.0,0.00015999,2]
[339674894,1727836238402,-350.0,0.00016,2]
[339674895,1727836238411,-1283.59689567,0.00016,2]
[339674896,1727836238528,-1716.40310433,0.00016,2]
[339674897,1727836238537,-3000.0,0.0001601,2]
[339674898,1727836238547,-3000.0,0.0001602,2]
[339674899,1727836238556,-3000.0,0.0001603,2]
[339674900,1727836238567,-3000.0,0.0001604,2]
[339674901,1727836238579,-191.72402311,0.0001605,2]
[339674902,1727836238589,-3000.0,0.0001605,2]
[339674903,1727836238602,-3000.0,0.0001606,2]
[339674904,1727836238613,-179.11,0.0001607,2]
[339674905,1727836238624,-3000.0,0.0001607,2]
[339674906,1727836238634,-3000.0,0.0001608,2]
[339674907,1727836238645,-3000.0,0.0001609,2]
[339674908,1727836238657,-169.57875174,0.0001609,2]
[339674909,1727836238669,-5587.440194,0.000161,2]
[339674910,1727836238679,-500.0,0.00016154,2]
[339674911,1727836238690,-368.00086438,0.0001618,2]
[339674921,1727836240451,-10754.10397546,0.0001618,2]
[339674922,1727836240460,-153.0,0.0001619,2]
[339674923,1727836240470,-346.3214491,0.000162,5]
[339674924,1727836240479,-153.0,0.000162,2]
[339674925,1727836240489,-153.0,0.000162,2]
[339674926,1727836240498,-153.0,0.000162,2]
[339674927,1727836240508,-153.0,0.000162,2]
[339674928,1727836240517,-153.7482804,0.000162,2]
[339674929,1727836240527,-153.0,0.000162,2]
[339674930,1727836240537,-153.0,0.000162,2]
[339674931,1727836240546,-153.0,0.000162,2]
[339674932,1727836240557,-153.0,0.000162,2]
[339674933,1727836240567,-153.0,0.000162,2]
[339674934,1727836240579,-540.11369479,0.00016232,2]
[339674935,1727836240590,-6359.9227158,0.00016274,2]
[339674936,1727836240601,-4927.75967115,0.00016274,2]
[339674937,1727836240611,-153.0,0.000163,2]
[339674938,1727836240623,-153.0,0.000163,2]
[339674939,1727836240634,-154.3608889,0.000163,2]
[339674940,1727836240645,-153.0,0.000163,2]
[339674941,1727836240655,-153.0,0.000163,2]
[339674942,1727836240666,-10743.7221392,0.000163,2]
[339674943,1727836240678,-361.8985813,0.00016308,2]
[339674944,1727836240689,-243.006983,0.00016309,2]
[339674945,1727836240701,-243.006983,0.00016309,2]
[339674946,1727836240714,-151.0,0.00016309,2]
[339674947,1727836240725,-152.357079,0.00016309,2]
[339674948,1727836240737,-190.944162,0.00016309,2]
[339674949,1727836240750,-151.0,0.00016309,2]
[339674950,1727836240763,-151.0,0.00016309,2]
[339674951,1727836240775,-151.0,0.00016309,2]
[339674952,1727836240788,-151.0,0.00016309,2]
[339674953,1727836240802,-151.0,0.0001631,2]
[339674954,1727836240813,-243.006983,0.0001631,2]
[339674955,1727836240824,-243.006983,0.0001631,2]
[339674956,1727836240835,-243.006983,0.0001631,2]
[339674957,1727836240845,-243.006983,0.0001631,2]
[339674958,1727836240856,-153.586242,0.0001631,2]
[339674959,1727836240866,-300.676801,0.0001631,2]
[339674960,1727836240876,-151.251661,0.0001631,2]
[339674961,1727836240886,-152.358154,0.0001631,2]
[339674962,1727836240898,-151.0,0.0001631,2]
[339674963,1727836240908,-201.22887,0.0001631,2]
[339674964,1727836240918,-151.0,0.0001631,2]
[339674965,1727836240930,-151.0,0.0001631,2]
[339674966,1727836240940,-151.0,0.0001631,2]
[339674967,1727836240952,-151.0,0.0001631,2]
[339674968,1727836240962,-152.413561,0.0001631,2]
[339674969,1727836240972,-151.0,0.0001631,2]
[339674970,1727836240982,-184.551013,0.0001631,2]
[339674971,1727836240992,-151.0,0.0001631,2]
[339674972,1727836241003,-151.0,0.0001631,2]
[339674973,1727836241013,-151.0,0.0001631,2]
[339674974,1727836241023,-151.0,0.0001631,2]
[339674975,1727836241035,-152.155159,0.0001631,2]
[339674976,1727836241046,-151.0,0.0001631,2]
[339674977,1727836241055,-151.0,0.0001631,2]
[339674978,1727836241067,-151.0,0.0001631,2]
[339674979,1727836241077,-151.0,0.0001631,2]
[339674980,1727836241087,-151.0,0.0001631,2]
[339674981,1727836241097,-151.0,0.0001631,2]
[339674982,1727836241108,-151.0,0.0001631,2]
[339674983,1727836241119,-151.0,0.0001631,2]
[339674984,1727836241131,-156.474634,0.0001631,2]
[339674985,1727836241142,-151.0,0.0001631,2]
[339674986,1727836241154,-151.0,0.0001631,2]
[339674987,1727836241166,-151.0,0.0001631,2]
[339674988,1727836241176,-151.0,0.0001631,2]
[339674989,1727836241186,-151.0,0.0001631,2]
[339674990,1727836241197,-151.0,0.0001631,2]
[339674991,1727836241206,-151.0,0.0001631,2]
[339674992,1727836241216,-151.0,0.0001631,2]
[339674993,1727836241226,-284.674728,0.0001631,2]
[339674994,1727836241237,-158.67607,0.0001631,2]
[339674995,1727836241248,-151.0,0.0001631,2]
[339674996,1727836241258,-151.0,0.0001631,2]
[339674997,1727836241268,-151.0,0.0001631,2]
[339674998,1727836241278,-286.768751,0.0001631,2]
[339674999,1727836241289,-286.768751,0.0001631,2]
[339675000,1727836241299,-286.768751,0.0001631,2]
[339675001,1727836241309,-286.768751,0.0001631,2]
[339675002,1727836241320,-286.768751,0.0001631,2]
[339675003,1727836241333,-286.768751,0.0001631,2]
[339675004,1727836241343,-151.0,0.0001631,2]
[339675005,1727836241354,-151.0,0.0001631,2]
[339675006,1727836241365,-162.073051,0.0001631,2]